[Event "ESTCC U65 2018"]
[Site "Walbrzych"]
[Date "2018.04.22"]
[Round "9"]
[White "Christiansen, Arne"]
[Black "Patola, Eero"]
[Result "1-0"]
[ECO "A60"]
[WhiteElo "2045"]
[BlackElo "1823"]
[Annotator "NA"]
[PlyCount "85"]
[EventDate "2018.??.??"]
[EventCountry "POL"]
[SourceTitle "playchess.com"]
[Source "ChessBase"]
[SourceQuality "1"]
[WhiteTeam "Denmark"]
[BlackTeam "Finland"]
[WhiteTeamCountry "DEN"]
[BlackTeamCountry "FIN"]
[TimeControl "40/5400+30:1800+30"]

1. d4 {[%emt 0:00:00]} c5 {[%emt 0:01:45]} 2. d5 {[%emt 0:00:00]} Nf6 {[%emt 0:00:30]} 3. c4 {[%emt 0:00:42]} e6 {[%emt 0:00:28]} 4. Nc3 {[%emt 0:00:08]} d6 {[%emt 0:02:07]} 5. Nf3 {[%emt 0:02:32]} Be7 {[%emt 0:00:31]} 6. e4 {[%emt 0:01:05] E10: Blumenfeld Gambit} O-O {[%emt 0:00:43]} 7. Be2 {[%emt 0:01:45]} (7. h3 b5 8. cxb5 a6 9. a4 Re8 10. dxe6 Bxe6 11. Be2 c4 12. Be3 d5 13. Nd4 Bb4 14. Nxe6 fxe6 15. exd5 axb5 16. dxe6 {1-0 (25) Sargissian,G (2693)-Dimakiling,O (2428) Istanbul 2012}) 7... Re8 {[%emt 0:02:38]} 8. O-O {[%emt 0:01:02]} h6 $146 {[%emt 0:02:26]} ({Find the theoretical novelty and annotate with similar games:} 8... Nbd7 9. Bf4 exd5 10. cxd5 a6 11. a4 b6 12. h3 Bf8 13. Nd2 Ne5 {½-½ (27) Nikitin,G (2136)-Gavrilov,G (2089) Novosibirsk 2009}) 9. Qc2 {[%emt 0:04:48]} Na6 {[%emt 0:02:19]} 10. h3 {[%emt 0:06:36]} Nc7 {[%emt 0:06:18]} 11. Be3 {[%emt 0:01:22]} exd5 {[%emt 0:01:42]} 12. cxd5 {[%emt 0:02:35]} a6 {[%emt 0:03:18]} 13. a4 {[%emt 0:03:23]} b6 {[%emt 0:00:42]} 14. Rfd1 {[%emt 0:00:09]} Bb7 {[%emt 0:01:49]} 15. Rd2 {[%emt 0:12:38]} Bf8 {[%emt 0:06:43]} 16. Bc4 {[%emt 0:12:49]} Nd7 {[%emt 0:01:49]} 17. Re1 {[%emt 0:01:28]} Qf6 {[%emt 0:02:04]} 18. Rde2 {[%emt 0:01:01]} Ne5 {[%emt 0:01:49]} 19. Nxe5 {[%emt 0:00:36]} dxe5 {[%emt 0:01:06]} 20. Bc1 {[%emt 0:01:12]} Rad8 {[%emt 0:05:06]} 21. Re3 {[%emt 0:00:26]} g6 {[%emt 0:02:17]} 22. Rf3 {[%emt 0:02:29]} Qg7 {[%emt 0:06:45]} 23. Qb3 {[%emt 0:01:03]} Rd6 $16 {[%emt 0:00:44]} 24. Nd1 {[%emt 0:03:34]} Be7 {[%emt 0:02:37]} 25. Qd3 {[%emt 0:02:13]} Red8 {[%emt 0:07:50]} 26. Ne3 {[%emt 0:01:31]} Ne6 {[%emt 0:03:03]} 27. Ng4 {[%emt 0:03:01]} Bg5 {[%emt 0:11:28]} 28. Bxg5 {[%emt 0:04:21]} Nxg5 {[%emt 0:00:14]} 29. Rg3 {[%emt 0:02:17]} Nxe4 {[%emt 0:03:12]} 30. Qxe4 {[%emt 0:03:44]} f5 {[%emt 0:00:49]} 31. Nxh6+ {[%emt 0:00:18]} Qxh6 {[%emt 0:02:14]} 32. Qxe5 {[%emt 0:00:18]} Qf8 {[%emt 0:01:20]} 33. h4 {[%emt 0:04:16]} Qf6 {[%emt 0:03:48]} 34. h5 {[%emt 0:02:54]} Qxe5 {[%emt 0:03:03]} 35. Rxe5 {[%emt 0:00:10]} Kf7 {[%emt 0:00:17]} 36. hxg6+ {[%emt 0:00:27]} Kf6 {[%emt 0:01:47]} 37. Re6+ {[%emt 0:01:55]} Rxe6 {[%emt 0:01:51]} 38. dxe6 {[%emt 0:00:06]} Kg7 {[%emt 0:01:11]} 39. Rb3 {[%emt 0:01:20]} b5 {[%emt 0:06:52]} 40. axb5 {[%emt 0:00:00]} axb5 {[%emt 0:00:15]} 41. Bxb5 {[%emt 0:03:58]} Rd1+ {[%emt 0:02:12]} 42. Kh2 {[%emt 0:00:25]} Re1 {[%emt 0:05:45]} 43. Re3 {[%emt 0:01:04]} 1-0

[Event "ESTCC U65 2018"]
[Site "Walbrzych"]
[Date "2018.04.22"]
[Round "9"]
[White "Koskinen, Veikko"]
[Black "Westerinen, Heikki M J"]
[Result "0-1"]
[ECO "A05"]
[WhiteElo "2012"]
[BlackElo "2308"]
[Annotator "NA"]
[PlyCount "140"]
[EventDate "2018.??.??"]
[EventCountry "POL"]
[SourceTitle "playchess.com"]
[Source "ChessBase"]
[SourceQuality "1"]
[WhiteTeam "Finland"]
[BlackTeam "Finland"]
[WhiteTeamCountry "FIN"]
[BlackTeamCountry "FIN"]
[TimeControl "40/5400+30:1800+30"]

1. Nf3 {[%emt 0:00:00]} Nf6 {[%emt 0:00:51]} 2. g3 {[%emt 0:00:00]} g6 {[%emt 0:00:24]} 3. Bg2 {[%emt 0:00:00]} Bg7 {[%emt 0:00:11]} 4. O-O {[%emt 0:00:08]} O-O {[%emt 0:00:13]} 5. d3 {[%emt 0:00:36]} d5 {[%emt 0:02:18]} 6. Nbd2 {[%emt 0:00:42]} Nc6 {[%emt 0:04:40]} 7. e4 {[%emt 0:02:15]} e5 {[%emt 0:05:12]} 8. exd5 {[%emt 0:14:13]} Nxd5 {[%emt 0:00:11]} 9. Nc4 {[%emt 0:00:57]} Re8 {[%emt 0:07:14]} 10. Re1 {[%emt 0:07:04]} h6 {[%emt 0:04:29]} 11. a4 {[%emt 0:16:19] LiveBook: 16 Games A07: Réti Opening: New York and Capablanca Systems} (11. c3 Nb6 12. Ne3 Be6 13. Qc2 Qd7 14. a4 a5 15. Bd2 Rad8 16. Bf1 Bh3 17. Bxh3 Qxh3 18. Rad1 Kh8 {1-0 (47) Nepomniachtchi,I (2714)-Bacrot,E (2718) Beijing 2014}) 11... a5 {[%emt 0:05:30]} 12. Bd2 {[%emt 0:08:00]} b6 {[%emt 0:05:38]} 13. Ne3 $146 {[%emt 0:01:38]} ({Predecessor:} 13. Qc1 Kh7 14. Re4 g5 15. h4 g4 16. Nfxe5 Nxe5 17. Nxe5 Rxe5 18. Rxe5 Bxe5 {0-1 (43) Pel,B (2280)-Pruijssers,R (2408) Groningen 2007}) 13... Nxe3 {[%emt 0:02:54]} 14. Bxe3 {[%emt 0:02:09]} Bb7 {[%emt 0:02:24]} 15. Qc1 {[%emt 0:00:27]} Kh7 {[%emt 0:03:05]} 16. Nd2 {[%emt 0:02:52]} Qd7 {[%emt 0:01:19]} 17. Nc4 {[%emt 0:05:08]} Rad8 {[%emt 0:04:03]} 18. Bd2 {[%emt 0:06:56]} Bc8 {[%emt 0:08:46]} 19. Bc3 {[%emt 0:03:29]} Nd4 {[%emt 0:00:37]} 20. Bxd4 {[%emt 0:04:57]} Qxd4 {[%emt 0:02:37]} 21. Qe3 {[%emt 0:02:52]} Ba6 {[%emt 0:04:16]} 22. Qxd4 {[%emt 0:03:53]} Rxd4 {[%emt 0:00:26]} 23. Ne3 {[%emt 0:06:06]} Red8 {[%emt 0:00:55]} 24. b3 {[%emt 0:00:37]} f5 {[%emt 0:01:43]} 25. Rad1 {[%emt 0:02:11]} h5 {[%emt 0:02:04]} 26. Bf3 {[%emt 0:01:58]} e4 {[%emt 0:10:40]} 27. dxe4 {[%emt 0:02:47]} Bb7 {[%emt 0:00:03]} 28. Be2 {[%emt 0:01:22]} Bxe4 {[%emt 0:00:45]} 29. Rxd4 {[%emt 0:00:19]} Rxd4 {[%emt 0:01:25]} 30. Rd1 {[%emt 0:00:32]} Rxd1+ {[%emt 0:02:24]} 31. Bxd1 {[%emt 0:00:18]} Bd4 {[%emt 0:01:06]} 32. Nc4 {[%emt 0:01:43]} g5 {[%emt 0:06:37]} 33. Kf1 {[%emt 0:00:49]} g4 {[%emt 0:00:38]} 34. Nd2 {[%emt 0:00:32]} Bb7 {[%emt 0:01:11]} 35. Be2 {[%emt 0:00:56]} Kg6 {[%emt 0:00:27]} 36. Bd3 {[%emt 0:00:19]} Kf6 {[%emt 0:01:02]} 37. Ke2 {[%emt 0:00:15]} Kg5 {[%emt 0:02:16]} 38. c4 {[%emt 0:02:02]} Kf6 {[%emt 0:01:56]} 39. Bc2 {[%emt 0:00:41]} Ke5 {[%emt 0:01:06]} 40. Bb1 {[%emt 0:00:00]} Bc3 {[%emt 0:02:31]} 41. Bd3 $17 {[%emt 0:14:35]} Bb4 {[%emt 0:11:42]} 42. Ke3 {[%emt 0:02:03]} Bc8 {[%emt 0:02:20]} 43. f4+ {[%emt 0:05:34]} Ke6 {[%emt 0:00:41]} 44. Ke2 {[%emt 0:02:34]} Bb7 {[%emt 0:04:56]} 45. Bc2 {[%emt 0:06:04]} Bc5 {[%emt 0:01:17]} 46. Kf1 {[%emt 0:00:20]} Be3 {[%emt 0:02:44]} 47. Nb1 {[%emt 0:00:24]} h4 {[%emt 0:00:40]} 48. Nc3 {[%emt 0:00:17]} c6 {[%emt 0:02:49]} 49. Bd3 {[%emt 0:01:57]} Bc8 {[%emt 0:01:16]} 50. Nd1 {[%emt 0:01:07]} Bc1 {[%emt 0:00:23]} 51. Nf2 {[%emt 0:00:51]} h3 {[%emt 0:01:33]} 52. Bc2 {[%emt 0:00:13]} Kd6 {[%emt 0:00:28]} 53. Nd3 {[%emt 0:00:12]} Be3 {[%emt 0:00:17]} 54. Bd1 {[%emt 0:01:00]} Bd4 {[%emt 0:00:49]} 55. Bc2 {[%emt 0:00:10]} Ke6 {[%emt 0:00:58]} 56. Bd1 {[%emt 0:00:10]} Bb7 {[%emt 0:00:54]} 57. Bc2 {[%emt 0:00:30]} Ba6 {[%emt 0:00:41]} 58. Bd1 {[%emt 0:01:17]} b5 {[%emt 0:00:36]} 59. cxb5 {[%emt 0:00:37]} cxb5 {[%emt 0:00:02]} 60. axb5 {[%emt 0:00:22]} Bxb5 {[%emt 0:00:02]} 61. Be2 {[%emt 0:00:20]} Bc6 {[%emt 0:00:24]} 62. Ne1 {[%emt 0:00:24]} Bd5 {[%emt 0:01:07]} 63. Bd1 {[%emt 0:00:25]} Be4 {[%emt 0:00:55]} 64. Be2 {[%emt 0:01:19]} Kd6 {[%emt 0:00:55]} 65. Bd1 {[%emt 0:00:53]} Kc5 {[%emt 0:00:49]} 66. Nc2 {[%emt 0:00:24]} Bd3+ {[%emt 0:01:37]} 67. Ke1 {[%emt 0:00:36]} Bg1 {[%emt 0:00:28]} 68. Na3 {[%emt 0:00:25]} Kb4 {[%emt 0:01:35]} 69. Nc4 {[%emt 0:00:52]} Bxc4 {[%emt 0:01:12]} 70. bxc4 {[%emt 0:00:03]} a4 {[%emt 0:00:23]} 0-1

[Event "ESTCC U65 2018"]
[Site "Walbrzych"]
[Date "2018.04.22"]
[Round "9"]
[White "Rantanen, Veikko"]
[Black "Gromark, Per-Olof"]
[Result "0-1"]
[ECO "B44"]
[WhiteElo "2007"]
[BlackElo "1901"]
[Annotator "NA"]
[PlyCount "128"]
[EventDate "2018.??.??"]
[EventCountry "POL"]
[SourceTitle "playchess.com"]
[Source "ChessBase"]
[SourceQuality "1"]
[WhiteTeam "Finland"]
[BlackTeam "Sweden"]
[WhiteTeamCountry "FIN"]
[BlackTeamCountry "SWE"]
[TimeControl "40/5400+30:1800+30"]

1. e4 {[%emt 0:00:00]} c5 {[%emt 0:00:08]} 2. Nf3 {[%emt 0:00:00]} e6 {[%emt 0:00:03]} 3. d4 {[%emt 0:01:13]} cxd4 {[%emt 0:00:05]} 4. Nxd4 {[%emt 0:00:05]} Nc6 {[%emt 0:00:03]} 5. a3 {[%emt 0:00:11]} a6 {[%emt 0:00:30]} 6. c4 {[%emt 0:00:49]} Qc7 {[%emt 0:01:04]} 7. Nc3 {[%emt 0:00:56]} Nf6 {[%emt 0:00:08]} 8. Nxc6 {[%emt 0:02:33] B41: Sicilian: Kan Variation: 5 c4} (8. Be2 b6 9. Be3 Bb7 10. f3 Nxd4 11. Bxd4 Bd6 12. Qb3 Bxh2 13. Qxb6 Bg3+ 14. Kd2 Qxb6 15. Bxb6 d5 16. exd5 exd5 {½-½ (39) Muzychuk,M (2544)-Dzagnidze,N (2522) Huaian 2017}) 8... bxc6 {[%emt 0:00:59]} 9. Be2 {[%emt 0:01:24]} Bb7 $146 {[%emt 0:01:43]} ({Predecessor:} 9... Be7 10. Be3 c5 11. f4 d6 12. O-O O-O 13. Bf3 Bb7 14. g4 Rad8 15. g5 Nd7 {1-0 (73) Klein,J (2236)-Bastian,H (2369) Eppelborn 2008}) 10. O-O {[%emt 0:00:24]} c5 {[%emt 0:01:32]} 11. Qd3 {[%emt 0:01:27]} d6 {[%emt 0:06:54]} 12. f4 {[%emt 0:06:39]} Be7 {[%emt 0:03:09]} 13. Bf3 {[%emt 0:04:07]} O-O {[%emt 0:01:28]} 14. Be3 {[%emt 0:06:53]} Bc6 {[%emt 0:02:52]} 15. Rab1 {[%emt 0:00:24]} Rab8 {[%emt 0:01:19]} 16. Bd1 {[%emt 0:06:43]} Rfd8 {[%emt 0:06:50]} 17. Bc2 {[%emt 0:00:17]} g6 {[%emt 0:06:58]} 18. Qe2 {[%emt 0:02:29]} Nd7 {[%emt 0:08:11]} 19. Rfd1 {[%emt 0:14:49]} Bf8 {[%emt 0:04:29]} 20. Kh1 {[%emt 0:06:13]} Ba8 {[%emt 0:03:05]} 21. Bd2 {[%emt 0:01:25]} Bg7 {[%emt 0:02:04]} 22. Qe1 {[%emt 0:02:12]} Re8 {[%emt 0:02:56]} 23. b3 {[%emt 0:01:13]} Bc6 {[%emt 0:02:44]} 24. Ne2 {[%emt 0:00:41]} Qb7 {[%emt 0:04:31]} 25. Ng3 {[%emt 0:02:26]} f5 {[%emt 0:04:07]} 26. Qe2 {[%emt 0:00:54]} Bd4 {[%emt 0:02:57]} 27. Be3 {[%emt 0:01:24]} e5 {[%emt 0:00:54]} 28. b4 {[%emt 0:04:52]} Qa8 {[%emt 0:02:23]} 29. b5 {[%emt 0:00:46]} Bb7 {[%emt 0:01:00]} 30. a4 {[%emt 0:00:12]} a5 {[%emt 0:01:31]} 31. Qf2 {[%emt 0:03:40]} fxe4 {[%emt 0:04:49]} 32. Re1 {[%emt 0:02:52]} Rf8 {[%emt 0:02:09]} 33. f5 {[%emt 0:03:24]} Nf6 {[%emt 0:01:44]} 34. h3 {[%emt 0:00:40]} Bc8 {[%emt 0:01:20]} 35. Bxd4 {[%emt 0:01:49]} cxd4 {[%emt 0:01:45]} 36. Nxe4 {[%emt 0:00:17]} Nxe4 {[%emt 0:00:49]} 37. Bxe4 {[%emt 0:02:05]} Bb7 {[%emt 0:00:06]} 38. Bxb7 {[%emt 0:00:21]} Qxb7 {[%emt 0:01:37]} 39. Qa2 {[%emt 0:00:00]} Qf7 {[%emt 0:04:12]} 40. fxg6 {[%emt 0:00:00]} hxg6 {[%emt 0:00:09]} 41. Qa3 {[%emt 0:02:39]} Qc7 {[%emt 0:05:07]} 42. Qd3 {[%emt 0:01:11]} Kg7 {[%emt 0:00:43]} 43. Rbc1 {[%emt 0:00:27]} Rbc8 {[%emt 0:01:43]} 44. Qd2 {[%emt 0:06:10]} Rf5 {[%emt 0:01:27]} 45. Re4 {[%emt 0:01:10]} d5 {[%emt 0:03:52]} 46. Rh4 {[%emt 0:00:20]} dxc4 {[%emt 0:00:50]} 47. Qh6+ {[%emt 0:00:09]} Kf6 {[%emt 0:00:16]} 48. Rg4 {[%emt 0:01:39]} Qg7 {[%emt 0:02:32]} 49. Qh4+ {[%emt 0:01:26]} Kf7 {[%emt 0:00:35]} 50. Qe1 {[%emt 0:00:24]} c3 {[%emt 0:00:58]} 51. Qe4 {[%emt 0:00:22]} Kf8 {[%emt 0:02:37]} 52. Qd5 {[%emt 0:00:24]} Qf7 {[%emt 0:01:20]} 53. Qd6+ {[%emt 0:00:25]} Kg7 $17 {[%emt 0:01:10]} 54. Re4 {[%emt 0:01:41]} Re8 {[%emt 0:01:10]} 55. Qc5 {[%emt 0:02:31]} Qb7 {[%emt 0:02:51]} 56. Rg4 {[%emt 0:00:42]} Re6 {[%emt 0:04:03]} 57. Re1 {[%emt 0:01:48]} Qb6 {[%emt 0:01:18]} 58. Qc4 {[%emt 0:01:04]} e4 {[%emt 0:06:48]} 59. Rgxe4 {[%emt 0:04:05]} Rxe4 {[%emt 0:00:36]} 60. Rxe4 {[%emt 0:00:07]} Qf6 {[%emt 0:05:07]} 61. Qxd4 {[%emt 0:05:51]} Qxd4 {[%emt 0:01:00]} 62. Rxd4 {[%emt 0:00:07]} Rf1+ {[%emt 0:00:14]} 63. Kh2 {[%emt 0:00:08]} c2 {[%emt 0:00:04]} 64. Re4 Rf5 0-1

[Event "ESTCC U65 2018"]
[Site "Walbrzych"]
[Date "2018.04.22"]
[Round "9"]
[White "Wademark, Helge"]
[Black "Malmdin, Nils-Ake"]
[Result "1/2-1/2"]
[ECO "B23"]
[WhiteElo "2005"]
[BlackElo "2154"]
[Annotator "NA"]
[PlyCount "40"]
[EventDate "2018.??.??"]
[EventCountry "POL"]
[SourceTitle "playchess.com"]
[Source "ChessBase"]
[SourceQuality "1"]
[WhiteTeam "Sweden"]
[BlackTeam "Sweden"]
[WhiteTeamCountry "SWE"]
[BlackTeamCountry "SWE"]
[TimeControl "40/5400+30:1800+30"]

1. e4 {[%emt 0:00:00]} c5 {[%emt 0:00:35]} 2. Nc3 {[%emt 0:00:11]} Nc6 {[%emt 0:00:23]} 3. f4 {[%emt 0:00:07]} g6 {[%emt 0:00:15]} 4. Nf3 {[%emt 0:00:09]} Bg7 {[%emt 0:00:11]} 5. Bb5 {[%emt 0:00:30]} Nd4 {[%emt 0:01:32]} 6. Nxd4 {[%emt 0:00:11]} cxd4 {[%emt 0:00:10]} 7. Ne2 {[%emt 0:00:10]} Qb6 {[%emt 0:00:53]} 8. Bd3 {[%emt 0:00:34]} d5 {[%emt 0:02:45]} 9. exd5 {[%emt 0:06:01]} Nf6 {[%emt 0:00:36]} 10. c4 {[%emt 0:01:28]} dxc3 {[%emt 0:06:00]} 11. dxc3 {[%emt 0:01:17]} O-O {[%emt 0:08:54]} 12. Qb3 {[%emt 0:02:01]} Qc5 {[%emt 0:05:04]} 13. Qc4 {[%emt 0:05:25]} Qxd5 {[%emt 0:09:44]} 14. Qxd5 {[%emt 0:07:31]} Nxd5 {[%emt 0:00:15]} 15. Be4 {[%emt 0:00:23]} Rd8 {[%emt 0:06:22]} 16. Bd2 a5 {[%emt 0:02:00]} 17. Rd1 {[%emt 0:12:45]} Bg4 {[%emt 0:12:32]} 18. Bc1 {[%emt 0:06:13]} e6 {[%emt 0:04:49]} 19. h3 {[%emt 0:03:38]} Bf5 {[%emt 0:00:34]} 20. Bf3 {[%emt 0:02:14]} Bb1 {[%emt 0:04:38]} 1/2-1/2

[Event "ESTCC U65 2018"]
[Site "Walbrzych"]
[Date "2018.04.22"]
[Round "9"]
[White "Ranki, Martti"]
[Black "Andersson, Kenneth"]
[Result "1-0"]
[ECO "D53"]
[WhiteElo "1942"]
[BlackElo "1763"]
[Annotator "NA"]
[PlyCount "152"]
[EventDate "2018.??.??"]
[EventCountry "POL"]
[SourceTitle "playchess.com"]
[Source "ChessBase"]
[SourceQuality "1"]
[WhiteTeam "Finland"]
[BlackTeam "Sweden"]
[WhiteTeamCountry "FIN"]
[BlackTeamCountry "SWE"]
[TimeControl "40/5400+30:1800+30"]

1. d4 {[%emt 0:00:00]} d5 {[%emt 0:00:09]} 2. c4 {[%emt 0:00:00]} e6 {[%emt 0:00:43]} 3. Nc3 {[%emt 0:00:16]} Nf6 {[%emt 0:00:29]} 4. Bg5 {[%emt 0:01:12]} Be7 {[%emt 0:01:17]} 5. e3 {[%emt 0:00:50]} c6 {[%emt 0:00:37]} 6. Bd3 {[%emt 0:00:41]} dxc4 {[%emt 0:00:33]} 7. Bxc4 {[%emt 0:00:09]} Nbd7 {[%emt 0:00:23]} 8. Nf3 {[%emt 0:01:10]} O-O {[%emt 0:02:06]} 9. O-O {[%emt 0:01:19]} b5 10. Bd3 Bb7 {[%emt 0:05:23]} 11. Qc2 {[%emt 0:05:24] D60: Queen's Gambit Declined: Classical: Unusual White 7th moves} (11. Rc1 a6 12. Ne4 Nxe4 13. Bxe7 Nxf2 14. Bxh7+ Kh8 15. Rxf2 Qxe7 16. Be4 Rac8 17. Ne5 Nxe5 18. Qh5+ {1-0 (18) Li,C (2732)-Bacrot,A (2192) chess.com INT 2018}) 11... Rc8 {[%emt 0:01:07]} 12. Qe2 {[%emt 0:10:00]} h6 {[%emt 0:00:49]} 13. Bh4 {[%emt 0:01:39]} a6 {[%emt 0:00:17]} 14. a3 {[%emt 0:02:24]} c5 {[%emt 0:01:39]} 15. Rad1 $146 {[%emt 0:03:13]} ({Predecessor:} 15. Rfd1 Qc7 16. Rac1 Qa5 17. Ne5 Nxe5 18. dxe5 Nd5 19. Bxe7 Nxe7 20. Be4 Qc7 21. f4 {½-½ (21) Vieyra,D-Martinez,D Villa Ballester 1998}) 15... c4 {[%emt 0:08:06]} 16. Bb1 {[%emt 0:01:15]} Re8 {[%emt 0:01:18]} 17. e4 {[%emt 0:03:45]} Nh7 {[%emt 0:11:22]} 18. Bg3 {[%emt 0:02:18]} Ng5 {[%emt 0:00:56]} 19. Nxg5 {[%emt 0:02:44]} Bxg5 {[%emt 0:02:35]} 20. f4 {[%emt 0:05:24]} Bh4 {[%emt 0:01:32]} 21. Qg4 {[%emt 0:03:56]} Bxg3 {[%emt 0:01:26]} 22. Qxg3 {[%emt 0:00:36]} Qc7 {[%emt 0:03:51]} 23. Qh3 {[%emt 0:01:38]} Nf8 {[%emt 0:01:58]} 24. Rf3 {[%emt 0:01:10]} Qe7 {[%emt 0:05:24]} 25. Rdf1 {[%emt 0:03:28]} Rcd8 {[%emt 0:07:44]} 26. Ne2 {[%emt 0:03:46]} Kh8 {[%emt 0:03:16]} 27. g4 {[%emt 0:03:00]} f5 {[%emt 0:04:07]} 28. g5 {[%emt 0:05:10]} Bxe4 {[%emt 0:03:06]} 29. Bxe4 {[%emt 0:00:47]} fxe4 {[%emt 0:00:22]} 30. Rg3 {[%emt 0:03:45]} Nh7 {[%emt 0:02:59]} 31. gxh6 {[%emt 0:01:36]} gxh6 {[%emt 0:00:20]} 32. Qxh6 {[%emt 0:01:23]} Rg8 {[%emt 0:00:14]} 33. Kf2 {[%emt 0:01:07]} Rxg3 {[%emt 0:00:41]} 34. hxg3 {[%emt 0:00:37]} Qf6 {[%emt 0:02:44]} 35. Qh5 {[%emt 0:02:27]} Rg8 {[%emt 0:02:26]} 36. Rh1 {[%emt 0:02:20]} Qf5 {[%emt 0:02:52]} 37. Ke3 {[%emt 0:04:06]} a5 {[%emt 0:02:07]} 38. Qh4 {[%emt 0:00:28]} b4 {[%emt 0:08:58]} 39. Qe7 {[%emt 0:03:10]} Rb8 {[%emt 0:03:07]} 40. Qc7 {[%emt 0:04:12]} Rf8 {[%emt 0:35:54]} 41. Qxc4 {[%emt 0:01:43]} bxa3 {[%emt 0:00:00]} 42. bxa3 {[%emt 0:00:24]} Kg7 {[%emt 0:00:00]} 43. Qc2 {[%emt 0:02:03]} Nf6 {[%emt 0:00:00]} 44. Qc7+ {[%emt 0:02:37]} Rf7 {[%emt 0:00:00]} 45. Qc8 {[%emt 0:04:45]} Nd5+ {[%emt 0:00:00]} 46. Kf2 $14 {[%emt 0:02:57]} Rf8 {[%emt 0:00:00]} 47. Qd7+ {[%emt 0:01:19]} Rf7 {[%emt 0:00:00]} 48. Qe8 {[%emt 0:00:40]} Rf8 {[%emt 0:00:00]} 49. Qh5 {[%emt 0:01:02]} Qxh5 {[%emt 0:00:00]} 50. Rxh5 {[%emt 0:00:01]} Rb8 {[%emt 0:00:00]} 51. f5 {[%emt 0:00:33]} exf5 {[%emt 0:00:00]} 52. Rxf5 {[%emt 0:01:07]} Nf6 {[%emt 0:00:00]} 53. Rxa5 {[%emt 0:01:39]} Rb3 {[%emt 0:00:00]} 54. Nf4 {[%emt 0:02:54]} Ng4+ {[%emt 0:00:00]} 55. Kg2 {[%emt 0:00:33]} Rb2+ {[%emt 0:00:00]} 56. Kh3 {[%emt 0:00:36]} Nf6 {[%emt 0:00:31]} 57. Nh5+ {[%emt 0:00:32]} Nxh5 58. Rxh5 {[%emt 0:00:11]} e3 {[%emt 0:03:22]} 59. Re5 e2 {[%emt 0:02:20]} 60. Kg4 {[%emt 0:03:34]} Kf6 {[%emt 0:00:00]} 61. Kf3 {[%emt 0:00:29]} Rd2 {[%emt 0:00:30]} 62. Rxe2 {[%emt 0:00:50]} Rxd4 {[%emt 0:00:23]} 63. Re3 {[%emt 0:01:35]} Kf5 {[%emt 0:00:15]} 64. Rb3 {[%emt 0:00:57]} Ra4 {[%emt 0:00:45]} 65. Ke3 {[%emt 0:02:05]} Ke5 {[%emt 0:00:22]} 66. Kd3 {[%emt 0:00:20]} Kd5 {[%emt 0:03:04]} 67. Rc3 {[%emt 0:00:17]} Rg4 {[%emt 0:02:02]} 68. Kc2 {[%emt 0:00:20]} Re4 {[%emt 0:00:53]} 69. Kb3 {[%emt 0:00:47]} Rg4 {[%emt 0:00:50]} 70. a4 {[%emt 0:00:20]} Kd6 {[%emt 0:00:52]} 71. a5 {[%emt 0:00:34]} Kd5 {[%emt 0:00:24]} 72. Ka3 {[%emt 0:03:30]} Kd4 {[%emt 0:00:48]} 73. Rf3 {[%emt 0:01:39]} Kc5 {[%emt 0:00:25]} 74. Rb3 {[%emt 0:00:55]} Kc6 {[%emt 0:00:39]} 75. a6 {[%emt 0:02:16]} Rg8 76. g4 Kd5 1-0

[Event "ESTCC U65 2018"]
[Site "Walbrzych"]
[Date "2018.04.22"]
[Round "9"]
[White "Nilsson, Christer"]
[Black "Carlsten, Peter"]
[Result "1/2-1/2"]
[ECO "C50"]
[WhiteElo "1931"]
[BlackElo "2010"]
[Annotator "NA"]
[PlyCount "34"]
[EventDate "2018.??.??"]
[EventCountry "POL"]
[SourceTitle "playchess.com"]
[Source "ChessBase"]
[SourceQuality "1"]
[WhiteTeam "Sweden"]
[BlackTeam "Sweden"]
[WhiteTeamCountry "SWE"]
[BlackTeamCountry "SWE"]
[TimeControl "40/5400+30:1800+30"]

1. e4 {[%emt 0:00:00]} e5 {[%emt 0:00:37]} 2. Nf3 {[%emt 0:00:00]} Nc6 {[%emt 0:00:23]} 3. Bc4 {[%emt 0:01:41]} Bc5 {[%emt 0:02:34]} 4. d3 {[%emt 0:00:32]} Nf6 {[%emt 0:00:43]} 5. c3 {[%emt 0:04:55]} O-O {[%emt 0:00:28]} 6. O-O {[%emt 0:01:22]} d6 {[%emt 0:09:16]} 7. a4 {[%emt 0:03:10]} a5 {[%emt 0:04:38]} 8. Qb3 {[%emt 0:11:55]} h6 {[%emt 0:02:56]} 9. Na3 {[%emt 0:06:36]} Nd7 {[%emt 0:03:51]} 10. Qd1 {[%emt 0:01:53]} Nb6 {[%emt 0:00:51]} 11. Bb3 {[%emt 0:01:21]} Bg4 {[%emt 0:04:10]} 12. Be3 {[%emt 0:04:42]} Bxe3 {[%emt 0:03:38]} 13. fxe3 {[%emt 0:00:20]} Qe7 {[%emt 0:01:17]} 14. Qe1 {[%emt 0:02:35]} Be6 {[%emt 0:00:37]} 15. Bc2 {[%emt 0:04:03]} Rad8 {[%emt 0:11:11]} 16. Qg3 {[%emt 0:04:01]} Kh7 {[%emt 0:05:23]} 17. Rf2 {[%emt 0:09:35]} g6 {[%emt 0:01:18]} 1/2-1/2

[Event "ESTCC U65 2018"]
[Site "Walbrzych"]
[Date "2018.04.22"]
[Round "9"]
[White "Ruotanen, Helge"]
[Black "Vinke, Dietmar"]
[Result "1/2-1/2"]
[ECO "A00"]
[WhiteElo "1921"]
[BlackElo "2170"]
[Annotator "NA"]
[PlyCount "27"]
[EventDate "2018.??.??"]
[EventCountry "POL"]
[SourceTitle "playchess.com"]
[Source "ChessBase"]
[SourceQuality "1"]
[WhiteTeam "Finland"]
[BlackTeam "Finland"]
[WhiteTeamCountry "FIN"]
[BlackTeamCountry "FIN"]
[TimeControl "40/5400+30:1800+30"]

1. g3 {[%emt 0:00:00]} d5 {[%emt 0:00:07]} 2. Bg2 {[%emt 0:00:04]} c6 {[%emt 0:00:04]} 3. d3 {[%emt 0:00:28]} e5 {[%emt 0:00:10]} 4. Nf3 {[%emt 0:00:23]} Nd7 {[%emt 0:00:10]} 5. e4 {[%emt 0:01:57]} dxe4 {[%emt 0:00:16]} 6. dxe4 {[%emt 0:00:01]} Ngf6 {[%emt 0:00:07]} 7. O-O {[%emt 0:09:23]} Bc5 {[%emt 0:00:26]} 8. Nc3 {[%emt 0:00:30]} O-O {[%emt 0:02:48]} 9. h3 {[%emt 0:00:38]} b5 {[%emt 0:00:57]} 10. Qe2 {[%emt 0:01:18]} a5 {[%emt 0:02:10]} 11. Rd1 {[%emt 0:01:55]} Qc7 {[%emt 0:03:13]} 12. Nh4 Re8 13. g4 {[%emt 0:08:20]} Nf8 {[%emt 0:22:28]} 14. Be3 {[%emt 0:02:56]} 1/2-1/2